bitfinex-derivatives/quotes_SOLF0:USTF0_20250124
["timestamp","ask_amount","ask_price","bid_price","bid_amount"]
[1737730319527,0.02741585,268.59,268.37,22.45780801]
[1737730319729,13.84847121,268.64,268.4,13.84847121]
[1737730319924,1.5217,268.65,268.4,13.84847121]
[1737730320230,3.7231,268.58,268.51,3.724]
[1737730320426,1.5217,268.65,268.46,13.84847121]
[1737730320627,0.0247782,268.57,268.52,0.02314982]
[1737730320823,0.0247782,268.57,268.55,3.7233]
[1737730321028,3.33801,268.67,268.56,13.84847121]
[1737730321631,3.33801,268.67,268.61,13.84847121]
[1737730322034,3.33801,268.67,268.6,22.47090513]
[1737730322334,3.7,268.89,268.65,22.47090513]
[1737730322528,1.4932,268.92,268.71,22.47090513]
[1737730322728,1.4932,268.92,268.76,3.7205]
[1737730323031,102.64268764,268.93,268.71,22.47090513]
[1737730323231,3.7204,268.77,268.71,22.47090513]
[1737730323428,0.02611247,268.83,268.78,0.02729404]
[1737730323736,2.6928,268.91,268.66,22.47090513]
[1737730324031,2.6928,268.91,268.75,3.7206]
[1737730324423,2.6928,268.91,268.77,3.7204]
[1737730324632,2.6928,268.91,268.76,22.47090513]
[1737730324829,0.02345371,268.87,268.81,0.02547706]
[1737730325131,0.02345371,268.87,268.81,22.49638219]
[1737730326535,0.02345371,268.87,268.82,3.7196]
[1737730326730,0.02345371,268.87,268.81,22.49638219]
[1737730327031,0.02345371,268.87,268.81,0.02547706]
[1737730328433,3.7195,268.84,268.81,0.02547706]
[1737730328634,0.02345371,268.87,268.81,0.02547706]
[1737730328936,0.02345371,268.87,268.62,0.7191]
[1737730328937,3.7205,268.77,268.68,3.7216]
[1737730329430,3.7205,268.77,268.66,22.47090513]
[1737730329635,2.7992,268.86,268.63,1.3008]
[1737730329941,22.47090513,268.82,268.58,22.47090513]
[1737730330138,0.02670096,268.77,268.63,3.7223]
[1737730330540,0.02670096,268.77,268.59,3.7228]
[1737730330739,22.49760609,268.77,268.59,3.7228]
[1737730331040,3.7223,268.64,268.53,22.47090513]
[1737730331236,0.02689762,268.71,268.55,3.7234]
[1737730331443,22.47090513,268.77,268.53,22.47090513]
[1737730332040,0.02361058,268.66,268.53,22.47090513]
[1737730332741,0.02361058,268.66,268.51,1.3008]
[1737730332935,0.02361058,268.66,268.48,22.47090513]
[1737730333441,1.2074,268.71,268.48,22.47090513]
[1737730333639,1.2074,268.71,268.52,3.7238]
[1737730333640,0.0247059,268.6,268.52,3.7238]
[1737730334140,0.0247059,268.6,268.43,1.2379]
[1737730334141,0.0247059,268.6,268.43,23.70880513]
[1737730334337,0.0247059,268.6,268.46,3.7246]
[1737730334542,22.47090513,268.62,268.38,22.47090513]
[1737730334737,0.02535061,268.56,268.38,22.47090513]
[1737730334938,3.7245,268.48,268.4,3.7255]
[1737730335139,1.2884,268.55,268.33,23.71360513]
[1737730335340,0.02605033,268.47,268.33,23.71360513]
[1737730335537,3.725,268.44,268.36,3.726]
[1737730335738,0.02605033,268.47,268.33,23.71360513]
[1737730335935,0.02605033,268.47,268.33,22.47090513]
[1737730336141,22.47090513,268.52,268.28,22.47090513]
[1737730336543,0.02665149,268.43,268.28,22.47090513]
[1737730336742,0.02665149,268.43,268.23,1.2427]
[1737730336743,0.02665149,268.43,268.23,23.71360513]
[1737730336944,0.02665149,268.43,268.29,22.47090513]
[1737730337139,0.02665149,268.43,268.35,3.7262]
[1737730337339,22.47090513,268.52,268.29,22.47090513]
[1737730337544,0.02842327,268.42,268.29,22.47090513]
[1737730337743,3.7258,268.39,268.3,3.7269]
[1737730338242,0.02842327,268.42,268.29,22.47090513]
[1737730338842,0.02842327,268.42,268.38,3.7258]
[1737730339744,0.02842327,268.42,268.34,22.47090513]
[1737730340135,1.1823,268.53,268.34,22.47090513]
[1737730340335,0.02346394,268.41,268.29,22.47090513]
[1737730341145,0.02346394,268.41,268.34,22.47090513]
[1737730341536,1.1823,268.53,268.34,22.47090513]
[1737730341847,0.02439931,268.4,268.36,3.726]
[1737730342045,1.1823,268.53,268.34,22.47090513]
[1737730342344,0.02729009,268.41,268.34,22.47090513]
[1737730342544,0.02729009,268.41,268.36,3.726]
[1737730343138,0.02729009,268.41,268.33,3.7264]
[1737730343343,0.02729009,268.41,268.24,22.47090513]
[1737730343545,22.47090513,268.48,268.24,22.47090513]
[1737730343747,0.02510916,268.35,268.24,22.47090513]
[1737730343951,0.02510916,268.35,268.19,22.47090513]
[1737730345250,3.7273,268.28,268.19,22.47090513]
[1737730345550,2.748,268.36,268.19,22.47090513]
[1737730345751,0.0248725,268.26,268.19,22.47090513]
[1737730346152,3.7523725,268.26,268.17,3.7286]
[1737730346346,3.7523725,268.26,268.14,22.47090513]
[1737730346547,0.0248725,268.26,268.14,22.47090513]
[1737730346752,3.7279,268.23,268.16,3.7287]
[1737730346948,0.0248725,268.26,268.09,1.2212]
[1737730347143,33.62090513,268.33,268.09,1.2212]
[1737730347345,0.02807529,268.2,268.09,1.2212]
[1737730348150,0.02807529,268.2,268.18,3.7285]
[1737730349960,0.02807529,268.2,268.1,13.87781101]
[1737730350558,0.02807529,268.2,268.18,3.7285]
[1737730353459,0.02807529,268.2,268.16,3.7288]
[1737730353659,0.02807529,268.2,268.1,13.87781101]
[1737730354356,1.3098,268.32,268.15,13.87781101]
[1737730354558,1.3098,268.32,268.19,3.7283]
[1737730354759,1.3098,268.32,268.15,13.87781101]
[1737730355062,3.7269,268.3,268.24,3.7277]
[1737730355261,3.7269,268.3,268.15,13.87781101]
[1737730355461,0.02536804,268.25,268.2,0.02731407]
[1737730355667,0.02536804,268.25,268.24,3.7278]
[1737730356562,0.02536804,268.25,268.22,3.7279]
[1737730356760,0.02536804,268.25,268.2,0.02731407]
[1737730357562,3.75316804,268.25,268.2,0.02731407]
[1737730357763,0.02536804,268.25,268.2,0.02731407]
[1737730358264,0.02536804,268.25,268.22,3.728]
[1737730358656,0.02536804,268.25,268.2,3.75551407]
[1737730358862,0.02536804,268.25,268.2,0.02731407]
[1737730359362,3.75306804,268.25,268.2,0.02731407]
[1737730359759,0.02536804,268.25,268.2,0.02731407]
[1737730360358,0.02536804,268.25,268.22,3.728]
[1737730360564,0.02536804,268.25,268.2,0.02731407]
[1737730361066,15.53011101,268.4,268.2,0.02731407]
[1737730361067,3.7259,268.38,268.2,13.90512508]
[1737730361264,1.6523,268.4,268.2,13.87781101]
[1737730361467,3.7259,268.38,268.31,3.7267]
[1737730361869,3.7259,268.38,268.2,13.87781101]
[1737730362070,3.7259,268.38,268.32,0.02770672]
[1737730362071,0.02775243,268.37,268.32,0.02770672]
[1737730362368,3.75375243,268.37,268.32,0.02377283]
[1737730362966,0.02775243,268.37,268.32,0.02377283]
[1737730363465,3.7265,268.34,268.32,0.02377283]
[1737730364067,3.7262,268.36,268.32,0.02377283]
[1737730364369,0.02775243,268.37,268.32,3.75037283]
[1737730364766,0.02775243,268.37,268.32,0.02377283]
[1737730366082,0.02775243,268.37,268.34,3.7263]
[1737730368285,0.02775243,268.37,268.32,0.02377283]
[1737730368483,0.02775243,268.37,268.36,3.7261]
[1737730369283,18.01611101,268.56,268.35,13.87781101]
[1737730369585,18.01611101,268.56,268.3,13.87781101]
[1737730370285,13.87781101,268.51,268.3,13.87781101]
[1737730370487,0.02359763,268.46,268.4,0.02620563]
[1737730370985,0.02359763,268.46,268.27,1.2322]
[1737730370986,0.02359763,268.46,268.25,13.87781101]
[1737730371280,13.87781101,268.51,268.2,1.6184]
[1737730371685,13.87781101,268.46,268.2,1.6184]
[1737730371877,13.87781101,268.41,268.2,1.6184]
[1737730372082,3.727,268.3,268.28,0.0258077]
[1737730373091,0.02775114,268.33,268.28,0.0258077]
[1737730375093,3.7274,268.27,268.14,13.87781101]
[1737730375291,13.87781101,268.37,268.14,13.87781101]
[1737730375792,3.7273,268.28,268.14,13.87781101]
[1737730375990,3.75156774,268.28,268.23,0.02518692]
[1737730376197,0.02426774,268.28,268.25,3.7276]
[1737730376390,0.02426774,268.28,268.23,0.02518692]
[1737730376787,0.02426774,268.28,268.26,3.7275]
[1737730377388,0.02426774,268.28,268.23,0.02518692]
[1737730377588,0.02426774,268.28,268.24,3.7277]
[1737730377890,0.02426774,268.28,268.23,0.02518692]
[1737730379388,0.02426774,268.28,268.24,3.7277]
[1737730379693,0.02426774,268.28,268.23,0.02518692]
[1737730380394,3.75146774,268.28,268.23,0.02518692]
[1737730380588,0.02426774,268.28,268.23,0.02518692]
[1737730380790,3.7274,268.27,268.23,0.02518692]
[1737730381192,0.02426774,268.28,268.23,0.02518692]
[1737730382093,3.7277,268.25,268.23,0.02518692]
[1737730382694,0.02426774,268.28,268.23,0.02518692]
[1737730382895,0.02426774,268.28,268.17,3.7286]
[1737730383098,13.87781101,268.34,268.17,3.7286]
[1737730383293,3.7277,268.25,268.18,3.7286]
[1737730383596,13.87781101,268.34,268.11,1.2048]
[1737730383994,0.02805816,268.25,268.22,13.87781101]
[1737730384196,6.61960283,268.49,268.23,0.8043]
[1737730384601,6.61960283,268.49,268.24,1.2583]
[1737730384795,3.7252,268.43,268.33,3.7265]
[1737730384996,6.61960283,268.49,268.33,3.7265]
[1737730385296,0.02673366,268.44,268.39,3.7257]
[1737730385495,0.02673366,268.44,268.38,0.02763305]
[1737730385897,3.7253,268.42,268.38,0.02763305]
[1737730386091,0.02673366,268.44,268.24,2.8758]
[1737730386291,13.87781101,268.45,268.24,2.8758]
[1737730386492,3.7257,268.39,268.28,3.7271]
[1737730386691,3.7257,268.39,268.24,2.8758]
[1737730386899,13.87781101,268.45,268.24,2.8758]
[1737730387297,0.02548873,268.37,268.32,0.02410483]
[1737730387502,0.02548873,268.37,268.32,3.75070483]
[1737730388200,0.02548873,268.37,268.33,3.7265]
[1737730388400,0.02548873,268.37,268.32,0.02410483]
[1737730388803,0.02548873,268.37,268.33,3.7265]
[1737730389204,0.02548873,268.37,268.32,0.02410483]
[1737730389502,1.5249,268.49,268.36,13.87781101]
[1737730389799,1.5249,268.49,268.42,3.7252]
[1737730390003,1.5249,268.49,268.31,13.87781101]
[1737730390197,5.2493,268.49,268.31,13.87781101]
[1737730390699,0.02491072,268.43,268.37,0.02761636]
[1737730391404,0.02491072,268.43,268.38,3.7257]
[1737730391703,0.02491072,268.43,268.37,0.02761636]
[1737730392098,0.02491072,268.43,268.39,3.7257]
[1737730392397,0.02491072,268.43,268.37,0.02761636]
[1737730393008,3.7254,268.41,268.37,0.02761636]
[1737730393399,0.02491072,268.43,268.37,0.02761636]
[1737730394106,1.2402,268.51,268.37,0.02761636]
[1737730394498,3.7243,268.5,268.43,3.725]
[1737730394702,1.2402,268.51,268.36,13.87781101]
[1737730395208,0.0265795,268.46,268.41,0.0240799]
[1737730397700,0.0265795,268.46,268.31,13.87781101]
[1737730398109,0.0265795,268.46,268.26,13.87781101]
[1737730398306,1.2402,268.51,268.26,13.87781101]
[1737730398803,1.2402,268.51,268.36,0.02598515]
[1737730398804,3.7507528,268.41,268.36,0.02598515]
[1737730399700,0.0253528,268.41,268.36,0.02598515]
[1737730401511,0.0253528,268.41,268.36,3.75198515]
[1737730401810,0.0253528,268.41,268.36,0.02598515]
[1737730402709,3.7257,268.39,268.36,0.02598515]
[1737730403206,0.0253528,268.41,268.24,2.8758]
[1737730403606,13.87781101,268.45,268.24,2.8758]
[1737730403804,13.87781101,268.45,268.27,3.7272]
[1737730404214,25.02781101,268.45,268.12,7.4587]
[1737730404409,0.02576379,268.39,268.33,3.923e-05]
[1737730404604,2.79596379,268.39,268.33,3.923e-05]
[1737730405005,3.7264,268.34,268.33,3.923e-05]
[1737730405706,3.7262,268.36,268.33,3.923e-05]
[1737730405912,2.79596379,268.39,268.33,3.923e-05]
[1737730406905,3.7259,268.38,268.33,3.923e-05]
[1737730407110,0.02576379,268.39,268.33,3.923e-05]
[1737730407515,3.726,268.37,268.33,3.923e-05]
[1737730408318,3.7259,268.38,268.33,3.923e-05]
[1737730408516,0.02576379,268.39,268.33,3.923e-05]
[1737730409516,3.7263,268.35,268.33,3.923e-05]
[1737730412822,0.02576379,268.39,268.33,3.923e-05]
[1737730413217,3.726,268.37,268.33,3.923e-05]
[1737730414124,0.02576379,268.39,268.33,3.923e-05]
[1737730414734,3.7261,268.36,268.33,3.923e-05]
[1737730416031,0.02576379,268.39,268.33,3.923e-05]
[1737730417233,3.75146379,268.39,268.34,3.7263]
[1737730417436,0.02576379,268.39,268.33,3.923e-05]
[1737730418936,1.2399,268.52,268.35,13.87781101]
[1737730419637,3.7236,268.55,268.4,13.87781101]
[1737730419832,5.16675231,268.59,268.46,13.87781101]
[1737730420034,0.0251673,268.5,268.46,13.87781101]
[1737730420335,5.16675231,268.65,268.46,13.87781101]
[1737730421032,3.7229,268.59,268.46,13.87781101]
[1737730421534,0.02727878,268.55,268.5,0.0240184]
[1737730421733,0.02727878,268.55,268.51,13.87781101]
[1737730422032,5.16675231,268.65,268.57,3.7231]
[1737730422234,13.87781101,268.76,268.51,13.87781101]
[1737730422535,3.7213,268.71,268.51,13.87781101]
[1737730422734,2.9247,268.75,268.56,13.87781101]
[1737730423236,0.02457476,268.68,268.63,0.02564757]
[1737730424133,0.02457476,268.68,268.66,3.7219]
[1737730424329,1.6913,268.83,268.66,13.87781101]
[1737730424536,1.2334,268.93,268.71,13.87781101]
[1737730424733,1.2334,268.93,268.8,3.7199]
[1737730424933,1.2334,268.93,268.76,13.87781101]
[1737730425537,0.02478082,268.87,268.82,0.02518787]
[1737730426135,0.02478082,268.87,268.85,3.7193]
[1737730426338,5.16675231,268.94,268.82,0.02518787]
[1737730426535,13.87781101,269.02,268.82,0.02518787]
[1737730426735,13.87781101,268.96,268.7,13.87781101]
[1737730427032,3.24,268.96,268.75,13.87781101]
[1737730427234,3.24,268.96,268.76,1.2538]
[1737730427430,3.24,268.96,268.83,0.02725153]
[1737730427431,0.02715985,268.88,268.83,0.02725153]
[1737730434344,3.74605985,268.88,268.83,0.02725153]
[1737730435949,0.02715985,268.88,268.83,0.02725153]
[1737730436744,0.02715985,268.88,268.85,3.7192]
[1737730436945,0.02715985,268.88,268.83,0.02725153]
[1737730437346,0.02715985,268.88,268.84,3.7194]
[1737730437540,0.02715985,268.88,268.83,0.02725153]
[1737730438548,0.02715985,268.88,268.84,3.7194]
[1737730438845,0.02715985,268.88,268.83,0.02725153]
[1737730442746,3.7194,268.84,268.83,0.02725153]
[1737730444149,0.02715985,268.88,268.7,13.87781101]
[1737730444348,14.5956,268.95,268.7,13.87781101]
[1737730444550,13.87781101,268.91,268.7,13.87781101]
[1737730444950,13.87781101,268.91,268.65,16.79391101]
[1737730445550,3.7205,268.76,268.75,0.02517846]
[1737730448145,3.7213,268.71,268.58,17.62341101]
[1737730448550,3.7213,268.71,268.62,7.04983797]
[1737730448745,3.7615,268.8,268.62,3.7224]
[1737730449250,0.0281229,268.74,268.68,0.02718767]
[1737730449446,3.7215,268.69,268.68,0.02718767]
[1737730450852,0.0281229,268.74,268.58,13.87781101]
[1737730451157,13.87781101,268.76,268.55,3.7233]
[1737730451555,3.7214,268.7,268.55,3.7233]
[1737730451756,3.12,268.71,268.56,3.7233]
[1737730452057,0.0252805,268.66,268.61,0.0267871]
[1737730452257,3.7221,268.65,268.61,0.0267871]
[1737730452558,0.0252805,268.66,268.61,0.0267871]
[1737730455459,3.7221,268.65,268.61,0.0267871]
[1737730455662,0.0252805,268.66,268.61,0.0267871]
[1737730457060,3.7225,268.62,268.61,0.0267871]
[1737730457256,1.5161,268.65,268.23,90.1836]
[1737730457563,1.5161,268.65,268.36,5.3616]
[1737730457859,3.6467,268.64,268.4,13.87781101]
[1737730458058,13.87781101,268.61,268.4,13.87781101]
[1737730458260,3.7235,268.55,268.42,3.7252]
[1737730458461,0.02850053,268.53,268.48,0.02119992]
[1737730460363,3.75230053,268.53,268.48,0.02119992]
[1737730460866,0.02850053,268.53,268.48,0.02119992]
[1737730462067,0.02850053,268.53,268.51,3.724]
[1737730462265,0.02850053,268.53,268.48,0.02119992]
[1737730463458,0.02850053,268.53,268.51,3.724]
[1737730465167,4.6126,268.7,268.49,13.87781101]
[1737730465466,1.4926,268.7,268.5,1.5063]
[1737730465666,3.7218,268.67,268.5,1.5063]
[1737730465866,3.7218,268.67,268.5,3.0949]
[1737730466264,3.7218,268.67,268.5,2.67636]
[1737730466465,0.02712363,268.61,268.56,0.02683025]
[1737730466858,0.02712363,268.61,268.59,3.7229]
[1737730467463,3.7211,268.73,268.56,0.02683025]
[1737730467667,3.7211,268.73,268.54,13.87781101]
[1737730467970,3.7211,268.72,268.63,3.7222]
[1737730468466,13.87781101,268.76,268.63,3.7222]
[1737730468662,0.02824223,268.7,268.65,0.02514565]
[1737730469263,3.74964223,268.7,268.65,0.02514565]
[1737730470668,3.7218,268.67,268.65,0.02514565]
[1737730470966,0.02824223,268.7,268.51,2.1867]
[1737730471167,16.99781101,268.76,268.51,2.1867]
[1737730471360,16.99781101,268.76,268.54,13.87781101]
[1737730471758,1.5105,268.77,268.54,13.87781101]
[1737730471962,0.02704014,268.68,268.63,0.02434739]
[1737730472172,13.87781101,268.91,268.64,13.87781101]
[1737730472368,6.7684,268.9,268.69,13.87781101]
[1737730473469,0.02748948,268.82,268.77,0.02530225]
[1737730474875,3.7203,268.78,268.77,0.02530225]
[1737730475166,0.02748948,268.82,268.65,2.1867]
[1737730475367,13.87781101,268.81,268.65,2.1867]
[1737730475561,3.7206,268.76,268.59,13.87781101]
[1737730475762,13.87781101,268.81,268.54,16.06051101]
[1737730475969,13.87781101,268.76,268.54,16.06051101]
[1737730476167,3.8268,268.75,268.54,2.1827]
[1737730476362,0.02856007,268.68,268.62,0.02853673]
[1737730478760,0.02856007,268.68,268.66,3.7219]
[1737730479370,3.7204,268.78,268.7,3.7214]
[1737730479565,3.7204,268.78,268.6,1.5943]
[1737730479772,3.7204,268.77,268.6,1.5943]
[1737730480072,3.7204,268.77,268.69,3.7215]
[1737730480575,0.02779755,268.76,268.7,0.02517162]
[1737730482175,0.02779755,268.76,268.74,3.7208]
[1737730483866,1.6165,268.89,268.79,3.7201]
[1737730484067,1.6165,268.89,268.71,1.5769]
[1737730484272,1.6165,268.89,268.73,13.87781101]
[1737730484976,0.02579906,268.84,268.8,3.7199]
[1737730485271,0.02579906,268.84,268.78,0.02575394]
[1737730485576,0.02579906,268.84,268.78,3.74595394]
[1737730485771,0.02579906,268.84,268.78,0.02575394]
[1737730487176,0.02579906,268.84,268.79,3.7201]
[1737730489781,0.02579906,268.84,268.78,0.02575394]
[1737730491387,0.02579906,268.84,268.83,3.7196]
[1737730494783,0.02579906,268.84,268.8,3.72]
[1737730495281,0.02579906,268.84,268.78,0.02575394]
[1737730495481,15.36881101,269.02,268.78,0.02575394]
[1737730495678,13.87781101,269.12,268.87,13.87781101]
[1737730495985,19.10571101,269.12,268.99,3.7172]
[1737730496176,19.10571101,269.12,268.92,13.87781101]
[1737730496379,19.10571101,269.12,268.87,13.87781101]
[1737730496577,3.7163,269.07,268.95,3.7179]
[1737730496884,0.0267097,269.02,268.97,0.02473816]
[1737730498383,0.0267097,269.02,269.0,3.7172]
[1737730499279,5.16675231,269.17,268.97,13.90254917]
[1737730499479,5.16675231,269.17,269.02,13.87781101]
[1737730499682,3.9093,269.2,269.02,13.87781101]
[1737730500380,1.611,269.2,269.02,13.87781101]
[1737730500585,0.02727134,269.14,269.08,0.02831265]
[1737730500786,0.02727134,269.14,269.12,3.7155]
[1737730501385,32.49806794,269.32,269.14,3.7152]
[1737730501584,6.77275231,269.31,269.13,13.87781101]
[1737730501886,6.77275231,269.31,269.18,3.7147]
[1737730502084,6.77275231,269.31,269.13,13.87781101]
[1737730502385,6.77275231,269.31,269.21,3.7143]
[1737730502589,0.0284766,269.24,269.21,3.7143]
[1737730503188,0.0284766,269.24,269.22,3.7141]
[1737730503482,0.0284766,269.24,269.19,0.02492726]
[1737730505589,3.7117,269.41,269.28,3.7133]
[1737730505887,1.6134,269.45,269.22,13.87781101]
[1737730506090,3.7117,269.4,269.27,3.7134]
[1737730506485,4.7334,269.45,269.22,13.87781101]
[1737730506681,0.02511803,269.35,269.3,0.02538233]
[1737730509688,0.02511803,269.35,269.3,3.73848233]
[1737730509991,0.02511803,269.35,269.3,0.02538233]
[1737730510183,0.02511803,269.35,269.33,3.7126]
[1737730511388,2.1789,269.51,269.32,13.87781101]
[1737730511593,2.1789,269.51,269.4,3.7117]
[1737730511986,3.7099,269.54,269.43,3.7112]
[1737730512192,13.87781101,269.51,269.27,13.87781101]
[1737730512494,3.7117,269.4,269.3,3.7131]
[1737730512793,0.02813768,269.42,269.36,0.02808777]
[1737730513092,3.7109,269.46,269.37,3.7121]
[1737730513292,0.02569416,269.42,269.36,0.02808777]
[1737730515890,0.02569416,269.42,269.4,3.7117]
[1737730516089,3.12,269.53,269.36,0.02808777]
[1737730516393,3.12,269.53,269.32,13.87781101]
[1737730516898,13.87781101,269.56,269.32,13.87781101]
[1737730517096,3.7094,269.57,269.47,3.7106]
[1737730517295,1.5241,269.58,269.37,13.87781101]
[1737730517495,0.0278517,269.55,269.49,0.02643582]
[1737730517896,3.7376517,269.55,269.49,0.02643582]
[1737730518493,0.0278517,269.55,269.49,0.02643582]
[1737730518992,0.0278517,269.55,269.52,3.7099]
[1737730519192,0.0278517,269.55,269.49,0.02643582]
[1737730519599,0.0278517,269.55,269.53,3.7099]
[1737730520000,1.6006,269.65,269.52,13.87781101]
[1737730520600,13.87781101,269.76,269.52,13.87781101]
[1737730520800,13.87781101,269.76,269.53,5.2326]
[1737730521200,0.02609314,269.67,269.62,0.02493295]
[1737730521402,0.02609314,269.67,269.65,3.7082]
[1737730522497,5.2529,269.86,269.62,13.90274396]
[1737730522701,3.7059,269.83,269.62,13.90274396]
[1737730522901,5.2529,269.86,269.71,3.7074]
[1737730523103,5.2529,269.86,269.62,13.87781101]
[1737730523604,0.02644668,269.77,269.71,0.02583188]
[1737730525005,0.02644668,269.77,269.72,3.7073]
[1737730525202,0.02644668,269.77,269.71,0.02583188]
[1737730526401,0.02644668,269.77,269.74,3.707]
[1737730527208,0.02644668,269.77,269.75,3.7068]
[1737730527505,13.87781101,269.93,269.72,13.87781101]
[1737730527701,3.7044,269.94,269.79,3.7062]
[1737730527901,13.87781101,269.98,269.77,13.87781101]
[1737730528106,13.87781101,269.93,269.71,13.87781101]
[1737730528411,13.87781101,269.88,269.68,3.7304]
[1737730528709,13.87781101,269.83,269.6,13.87781101]
[1737730528909,0.02228293,269.81,269.64,3.7083]
[1737730529111,3.6156,269.82,269.64,3.7083]
[1737730529507,13.87781101,269.78,269.55,13.87781101]
[1737730529709,13.87781101,269.68,269.5,2.0842]
[1737730530013,3.709,269.6,269.56,0.02851791]
[1737730530504,0.02531644,269.62,269.56,0.02851791]
[1737730531303,3.709,269.6,269.56,0.02851791]
[1737730531509,0.02531644,269.62,269.4,16.03701101]
[1737730531702,5.2201,269.67,269.4,2.1592]
[1737730531703,13.87781101,269.58,269.4,2.1592]
[1737730532011,3.71,269.53,269.4,2.1592]
[1737730532314,13.87781101,269.58,269.4,2.1592]
[1737730532610,0.02365648,269.52,269.46,0.02536461]
[1737730535012,13.90146749,269.52,269.38,0.44163]
[1737730535212,3.7772,269.51,269.38,0.44163]
[1737730535413,3.7114,269.43,269.38,0.44163]
[1737730535914,13.87781101,269.47,269.38,0.44163]
[1737730536114,0.02512241,269.45,269.4,0.02350552]
[1737730536613,0.02512241,269.45,269.23,13.87781101]
[1737730537114,3.7118,269.4,269.28,3.7133]
[1737730537415,3.7118,269.4,269.35,0.44216]
[1737730537616,3.7117,269.4,269.26,3.7136]
[1737730537810,3.7117,269.4,269.35,0.0237557]
[1737730537811,0.02547051,269.4,269.35,0.0237557]
[1737730538116,13.87781101,269.42,269.19,1.5474]
[1737730538315,13.87781101,269.42,269.18,17.19841234]
[1737730538615,13.87781101,269.37,269.18,17.19841234]
[1737730538810,3.8342,269.36,269.18,3.32060133]
[1737730539015,13.87781101,269.32,269.07,13.87781101]
[1737730539214,13.87781101,269.22,269.02,13.87781101]
[1737730539416,3.715,269.17,269.04,3.7166]
[1737730539615,3.8342,269.21,268.98,5.3103]
[1737730540517,0.02645889,269.12,269.07,0.02665365]
[1737730540816,0.02645889,269.12,268.92,13.87781101]
[1737730541017,0.02645889,269.12,268.97,13.87781101]
[1737730541316,3.8342,269.21,269.02,13.87781101]
[1737730541816,3.8342,269.21,269.06,22.3884927]
[1737730542013,0.02736437,269.14,269.09,0.02405862]
[1737730542818,0.02736437,269.14,269.12,3.7155]
[1737730543012,3.7324,269.35,269.11,22.3884927]
[1737730543212,5.2669,269.35,269.11,22.3884927]
[1737730543418,3.7129,269.32,269.19,3.7145]
[1737730543618,5.2669,269.35,269.11,22.3884927]
[1737730544220,0.0264425,269.26,269.2,0.02795548]
[1737730545422,0.0264425,269.26,269.24,3.7139]
[1737730545920,22.3884927,269.54,269.23,22.3884927]
[1737730546119,3.7102,269.52,269.3,22.3884927]
[1737730546518,5.3228,269.57,269.31,1.4904]
[1737730546721,27.7112927,269.57,269.35,22.3884927]
[1737730547022,0.02619965,269.47,269.41,0.02683065]
[1737730548020,0.02619965,269.47,269.43,3.7112]
[1737730548221,0.02619965,269.47,269.41,0.02683065]
[1737730549617,0.02619965,269.47,269.31,1.4904]
[1737730549618,3.7116,269.41,269.28,3.7133]
[1737730550016,3.7116,269.41,269.25,22.3884927]
[1737730550213,3.7114,269.43,269.3,3.713]
[1737730550417,5.3228,269.57,269.36,22.3884927]
[1737730550717,0.02607192,269.49,269.44,0.02412701]
[1737730553119,0.02607192,269.49,269.23,22.3884927]
[1737730553323,22.3884927,269.51,269.23,22.3884927]
[1737730553619,22.3884927,269.51,269.31,3.7128]
[1737730553921,22.3884927,269.46,269.23,22.3884927]
[1737730554124,22.3884927,269.46,269.28,3.7133]
[1737730554424,0.02520142,269.37,269.32,0.02443619]
[1737730555020,0.02520142,269.37,269.15,73.69383731]
[1737730555221,22.3884927,269.36,269.15,73.69383731]
[1737730556223,0.02723138,269.28,269.23,0.02610389]
[1737730556424,3.705,269.4,269.15,73.69383731]
[1737730556625,0.02380451,269.24,269.2,3.7144]
[1737730556921,3.705,269.4,269.15,73.69383731]
[1737730557122,0.02500348,269.25,269.19,0.02410684]
[1737730557327,3.705,269.4,269.15,73.69383731]
[1737730557627,3.705,269.4,269.22,22.3884927]
[1737730557826,3.705,269.4,269.31,3.7129]
[1737730558523,0.02376483,269.38,269.33,0.02805255]
[1737730558720,0.02376483,269.38,269.33,3.74065255]
[1737730559026,0.02376483,269.38,269.33,0.02805255]
[1737730560320,22.3884927,269.56,269.33,0.02805255]
[1737730560526,22.3884927,269.56,269.32,22.3884927]
[1737730561128,22.3884927,269.51,269.27,22.3884927]
[1737730561531,3.7117,269.4,269.36,0.02572434]
[1737730561723,0.0282821,269.42,269.23,2.2087]
[1737730561931,2.1084,269.41,269.23,2.2087]
[1737730562229,2.1084,269.41,269.3,3.7131]
[1737730562625,2.1084,269.41,269.35,3.7124]
[1737730562931,0.026975,269.41,269.35,0.02367564]
[1737730565431,0.026975,269.41,269.38,3.7119]